bitfinex-derivatives/quotes_ETHF0:USTF0_20240922
["timestamp","ask_amount","ask_price","bid_price","bid_amount"]
[1726999047145,2.4050183,2579.7,2579.4,0.77752]
[1726999047554,2.4050183,2579.7,2579.5,0.38761]
[1726999049155,2.4050183,2579.7,2579.4,0.77751]
[1726999049551,2.4050183,2579.7,2579.5,0.38761]
[1726999050061,2.4050183,2579.7,2579.4,0.77751]
[1726999050466,2.0174383,2579.7,2579.5,0.38761]
[1726999050652,2.4050183,2579.7,2579.5,0.38761]
[1726999051262,2.0174383,2579.7,2579.5,0.38761]
[1726999051454,2.7913383,2579.8,2579.4,0.3899]
[1726999051656,2.4050183,2579.7,2579.4,0.3899]
[1726999051855,2.0174383,2579.7,2579.5,0.3876]
[1726999052553,3.1789083,2579.8,2579.5,0.3876]
[1726999053868,1.16147,2579.8,2579.5,0.3876]
[1726999055557,0.38759,2579.6,2579.4,0.77752]
[1726999057167,0.38759,2579.7,2579.4,0.77752]
[1726999059058,0.7739,2579.8,2579.4,0.3899]
[1726999059266,0.38761,2579.6,2579.4,0.3899]
[1726999060858,0.38761,2579.5,2579.4,0.3899]
[1726999061759,0.3876,2579.6,2579.4,0.3899]
[1726999062365,2.0174383,2579.7,2579.4,0.77752]
[1726999062554,2.7913383,2579.8,2579.4,0.77752]
[1726999062859,0.38758,2579.7,2579.4,0.77752]
[1726999063070,0.38759,2579.7,2579.4,3.98532]
[1726999063766,0.38759,2579.7,2579.4,0.77752]
[1726999064064,0.38759,2579.7,2579.4,3.98532]
[1726999064259,0.38759,2579.7,2579.4,0.77752]
[1726999065163,0.38759,2579.6,2579.4,0.3899]
[1726999065362,0.38759,2579.6,2579.4,0.77752]
[1726999065865,2.7913383,2579.8,2579.4,0.77752]
[1726999066068,0.38761,2579.6,2579.4,0.77752]
[1726999066258,0.38761,2579.5,2579.4,0.3899]
[1726999066768,2.0174383,2579.7,2579.4,0.3899]
[1726999066769,0.3876,2579.6,2579.4,0.3899]
[1726999066968,0.3876,2579.6,2579.4,0.77752]
[1726999068757,2.4050383,2579.6,2579.4,0.77752]
[1726999068961,2.4050383,2579.6,2578.9,2.38039627]
[1726999068962,7.0846,2579.5,2578.8,3.2078]
[1726999069167,0.38769,2579.0,2578.7,0.79172]
[1726999069367,0.3924,2578.9,2578.7,0.404]
[1726999069567,0.7801,2578.9,2578.7,0.404]
[1726999069770,0.3924,2578.9,2578.7,0.404]
[1726999069969,0.7801,2578.9,2578.7,0.404]
[1726999073868,0.7795,2578.9,2578.7,0.393]
[1726999074970,1.1672,2578.9,2578.7,0.393]
[1726999075965,0.3924,2578.9,2578.7,0.393]
[1726999076369,0.7801,2578.9,2578.7,0.393]
[1726999080263,0.38771,2578.8,2578.7,0.393]
[1726999080868,0.38771,2578.8,2578.5,0.38775]
[1726999080869,0.38771,2578.8,2578.5,0.3778]
[1726999081270,0.38771,2578.8,2578.5,0.76556]
[1726999081674,0.78011,2578.9,2578.5,0.76556]
[1726999082575,0.3924,2578.9,2578.5,0.3778]
[1726999082876,0.78011,2578.9,2578.6,0.38774]
[1726999083471,0.78011,2578.9,2578.5,0.76555]
[1726999083872,0.38772,2578.8,2578.5,0.76555]
[1726999085391,0.38773,2578.7,2578.5,0.3778]
[1726999085787,0.3924,2578.9,2578.5,0.3778]
[1726999086094,0.38774,2578.7,2578.5,0.3778]
[1726999086392,0.78011,2578.9,2578.6,0.38774]
[1726999086980,0.38772,2578.8,2578.5,0.76555]
[1726999087785,0.38771,2578.8,2578.5,0.76555]
[1726999089202,0.38773,2578.7,2578.5,0.3778]
[1726999089693,0.38774,2578.6,2578.5,0.3778]
[1726999089996,0.38774,2578.7,2578.5,0.3778]
[1726999090393,0.75554,2578.6,2578.5,0.3778]
[1726999090793,0.3678,2578.6,2578.5,0.3778]
[1726999091190,0.3678,2578.6,2578.4,3.2078]
[1726999091392,0.3678,2578.6,2578.4,3.605]
[1726999091597,0.75554,2578.6,2578.4,3.605]
[1726999092100,0.3678,2578.6,2578.4,3.605]
[1726999093403,0.75555,2578.6,2578.4,3.605]
[1726999094089,0.75555,2578.6,2578.4,0.3972]
[1726999094295,0.75556,2578.6,2578.4,0.3972]
[1726999094794,2.34509696,2579.3,2579.1,15.48026924]
[1726999094992,4.0306547,2580.3,2579.1,15.48026924]
[1726999094993,0.3765,2581.3,2579.4,1.93814]
[1726999095194,0.3765,2581.3,2580.5,3.2078]
[1726999095389,0.3765,2581.3,2580.8,3.2078]
[1726999095591,0.38739,2581.0,2580.8,3.2078]
[1726999095897,0.38738,2581.1,2580.8,3.2078]
[1726999096097,0.38737,2581.1,2580.8,3.2078]
[1726999096501,0.38736,2581.2,2580.8,3.2078]
[1726999096702,0.38735,2581.2,2580.8,3.2078]
[1726999097098,0.38737,2581.1,2580.8,3.2078]
[1726999097305,0.38736,2581.2,2580.8,3.2078]
[1726999098400,3.5843,2581.3,2580.8,3.2078]
[1726999098797,0.38736,2581.2,2580.8,3.2078]
[1726999100499,3.5843,2581.3,2580.8,3.2078]
[1726999100703,0.3765,2581.3,2580.8,3.2078]
[1726999100909,0.38736,2581.2,2580.8,3.2078]
[1726999101904,2.601,2581.8,2581.1,3.2078]
[1726999102106,0.3803,2581.5,2581.1,3.2078]
[1726999102303,0.3803,2581.5,2581.1,3.59517]
[1726999102600,0.3803,2581.5,2581.1,3.2078]
[1726999103009,0.38733,2581.4,2581.1,3.2078]
[1726999104805,0.76762,2581.5,2581.1,3.2078]
[1726999105009,0.38732,2581.4,2581.1,3.2078]
[1726999114808,0.76762,2581.5,2581.1,3.59517]
[1726999115010,0.38733,2581.4,2581.1,3.2078]
[1726999115519,0.3803,2581.5,2581.2,0.38735]
[1726999115712,0.3803,2581.5,2581.1,3.2078]
[1726999116019,0.3803,2581.5,2581.2,0.38734]
[1726999116413,0.76761,2581.5,2581.1,3.2078]
[1726999116613,0.3803,2581.5,2581.2,0.38735]
[1726999118110,0.76761,2581.5,2581.2,0.38735]
[1726999118719,0.76761,2581.5,2581.2,0.78615]
[1726999118913,0.3803,2581.5,2581.2,0.78615]
[1726999119315,0.76761,2581.5,2581.2,0.78615]
[1726999119722,0.3803,2581.5,2581.2,0.78615]
[1726999119906,0.76761,2581.5,2581.2,0.78615]
[1726999120506,3.2078,2581.8,2581.2,0.3988]
[1726999120725,3.2078,2581.8,2581.6,3.2078]
[1726999120726,0.3812,2581.7,2581.6,3.2078]
[1726999122715,0.76848,2581.7,2581.6,3.2078]
[1726999125717,0.3984,2582.1,2581.7,0.38727]
[1726999125924,4.53584,2582.0,2581.7,0.76107]
[1726999128120,0.38725,2581.9,2581.7,0.3738]
[1726999129313,0.38725,2581.9,2581.7,0.76108]
[1726999129712,4.53584,2582.0,2581.7,0.76107]
[1726999130323,4.1486,2582.0,2581.8,0.38726]
[1726999130514,4.1486,2582.0,2581.9,0.38725]
[1726999130709,4.1486,2582.0,2581.8,0.38725]
[1726999132620,4.1486,2582.0,2581.9,3.2078]
[1726999133325,4.1486,2582.0,2581.8,0.38725]
[1726999133512,4.1486,2582.0,2581.9,3.2078]
[1726999136125,4.1486,2582.0,2581.9,3.59505]
[1726999136328,4.1486,2582.0,2581.9,3.2078]
[1726999137426,4.53583,2582.0,2581.9,3.2078]
[1726999138526,4.53583,2582.0,2581.8,0.38725]
[1726999138726,4.53583,2582.0,2581.9,3.2078]
[1726999140819,4.1486,2582.0,2581.7,0.3738]
[1726999141017,4.1486,2582.0,2581.6,3.2078]
[1726999141018,0.38728,2581.7,2581.6,3.2078]
[1726999145730,0.38728,2581.7,2581.4,0.38732]
[1726999145933,0.38728,2581.7,2581.6,3.2078]
[1726999147027,3.37797697,2581.7,2581.6,3.2078]
[1726999151231,0.38728,2581.7,2581.6,3.2078]
[1726999152637,1.35548,2581.7,2581.6,3.2078]
[1726999152949,1.35548,2581.7,2581.0,4.102]
[1726999152950,0.38737,2581.1,2581.0,4.102]
[1726999153239,0.38737,2581.1,2580.9,3.2078]
[1726999153240,0.38738,2581.1,2580.9,3.2078]
[1726999153440,0.78448,2581.0,2580.9,3.2078]
[1726999153629,0.3971,2581.0,2580.9,3.5952]
[1726999157333,0.78448,2581.0,2580.9,3.2078]
[1726999157638,0.3971,2581.0,2580.9,3.5952]
[1726999160641,0.78448,2581.0,2580.9,3.5952]
[1726999161037,0.78448,2581.0,2580.9,3.2078]
[1726999161243,0.78448,2581.0,2580.9,3.5952]
[1726999162636,0.3971,2581.0,2580.9,3.5952]
[1726999163136,0.78448,2581.0,2580.9,3.2078]
[1726999164336,0.78448,2581.0,2580.9,3.5952]
[1726999165343,0.78448,2581.0,2580.9,3.2078]
[1726999166744,0.3971,2581.0,2580.9,3.5952]
[1726999169835,0.38736,2581.2,2581.0,0.38738]
[1726999170032,0.38736,2581.2,2581.1,0.38737]
[1726999170738,0.3841,2581.3,2581.0,0.38737]
[1726999170739,0.38737,2581.1,2581.0,0.38737]
[1726999171044,0.38738,2581.0,2580.9,3.59519]
[1726999171239,0.38738,2581.1,2581.0,0.38738]
[1726999172838,0.38738,2581.0,2580.9,3.2078]
[1726999173139,0.79148,2581.0,2580.9,3.2078]
[1726999173447,0.79148,2581.0,2580.9,3.5952]
[1726999174133,0.4041,2581.0,2580.9,3.5952]
[1726999176445,0.4041,2581.0,2580.9,7.4696]
[1726999176644,0.4041,2581.0,2580.9,3.5952]
[1726999176837,0.4041,2581.0,2580.9,7.4696]
[1726999177040,0.4041,2581.0,2580.9,3.5952]
[1726999177447,0.79148,2581.0,2580.9,3.2078]
[1726999182548,0.79148,2581.0,2580.7,0.75972]
[1726999182745,0.79148,2581.0,2580.9,3.2078]
[1726999184043,0.79148,2581.0,2580.7,0.75972]
[1726999184251,0.3797,2580.9,2580.7,0.75972]
[1726999184752,0.3797,2580.9,2580.8,3.2078]
[1726999184946,0.3797,2580.9,2580.8,3.59521]
[1726999186549,0.3797,2580.9,2580.8,0.38741]
[1726999186945,0.3797,2580.9,2580.8,3.59521]
[1726999189449,0.7671,2580.9,2580.8,3.59521]
[1726999190652,0.3797,2580.9,2580.8,3.59521]
[1726999193453,0.3797,2580.9,2580.8,0.38741]
[1726999193656,0.3797,2580.9,2580.8,3.59521]
[1726999197150,0.3797,2580.9,2580.8,0.38741]
[1726999197352,0.4041,2581.0,2580.9,0.3874]
[1726999199463,0.79148,2581.0,2580.9,0.3874]
[1726999200356,0.4041,2581.0,2580.9,4.2618]
[1726999200561,4.15135,2581.2,2581.0,0.38737]
[1726999200763,4.53695,2581.2,2581.1,0.3942]
[1726999202567,4.53695,2581.2,2581.0,0.38738]
[1726999203256,4.53695,2581.2,2580.9,1.40020668]
[1726999203961,4.53695,2581.2,2581.0,0.38738]
[1726999204164,4.53695,2581.2,2580.9,1.01281668]
[1726999204365,4.53695,2581.2,2581.1,3.2078]
[1726999210362,5.50534,2581.2,2581.1,3.2078]
[1726999210557,9.37974,2581.2,2581.1,3.2078]
[1726999211467,0.38741,2580.9,2580.8,3.2078]
[1726999212170,0.77701,2580.9,2580.8,3.2078]
[1726999212959,0.77701,2580.9,2580.8,3.59521]
[1726999212960,0.3896,2580.9,2580.8,3.59521]
[1726999213158,3.02808886,2581.1,2580.8,3.59521]
[1726999213458,0.38739,2581.0,2580.8,3.59521]
[1726999213761,3.02808886,2581.1,2580.8,3.59521]
[1726999214065,0.38739,2581.0,2580.8,3.59521]
[1726999214265,3.41546886,2581.1,2580.8,3.59521]
[1726999214661,0.38739,2581.0,2580.8,3.98431]
[1726999214859,3.02808886,2581.1,2580.9,0.38739]
[1726999215168,3.41546886,2581.1,2580.9,0.3874]
[1726999215362,3.41546886,2581.1,2580.8,3.5969]
[1726999215363,0.38738,2581.0,2580.8,3.9843]
[1726999216062,0.38738,2581.0,2580.9,0.3874]
[1726999216362,0.38739,2581.0,2580.9,0.38739]
[1726999217069,0.38739,2581.0,2580.9,0.3874]
[1726999217461,4.5392,2581.2,2580.9,0.3874]
[1726999217462,7.56728886,2581.2,2580.9,0.3874]
[1726999217664,0.38738,2581.0,2580.9,0.3874]
[1726999218572,4.5392,2581.2,2580.9,2.77456671]
[1726999218759,4.92655,2581.2,2581.1,3.2078]
[1726999219870,3.764,2581.2,2581.1,3.59517]
[1726999220063,3.764,2581.2,2581.1,4.60798668]
[1726999220266,3.764,2581.2,2581.1,6.37870114]
[1726999220472,3.764,2581.2,2581.1,5.00458668]
[1726999220868,3.764,2581.2,2581.1,6.37870847]
[1726999221068,3.764,2581.2,2581.1,6.88511681]
[1726999223476,4.54763,2581.4,2581.2,0.38735]
[1726999223671,4.54763,2581.4,2581.2,1.40334597]
[1726999224082,4.1603,2581.4,2581.2,0.38735]
[1726999224278,3.764,2581.4,2581.3,0.38734]
[1726999224575,3.764,2581.4,2581.3,4.26174]
[1726999224779,3.764,2581.6,2581.5,0.38731]
[1726999225471,4.1513,2581.6,2581.5,3.2078]
[1726999225979,4.1513,2581.6,2581.3,3.98029597]
[1726999225980,4.1513,2581.6,2581.4,0.38731]
[1726999226277,4.1513,2581.6,2581.5,3.2078]
[1726999226474,3.764,2581.6,2581.5,0.38731]
[1726999226675,3.764,2581.6,2581.5,3.59511]
[1726999227781,3.764,2581.6,2581.5,3.97561]
[1726999229080,3.764,2581.6,2581.5,7.84921]
[1726999229278,3.764,2581.8,2581.7,0.38728]
[1726999230376,3.764,2581.8,2581.6,0.38729]
[1726999230377,4.15127,2581.8,2581.6,0.38729]
[1726999230570,4.15127,2581.8,2581.5,3.5883]
[1726999230972,4.15127,2581.8,2581.7,0.38728]
[1726999231481,3.764,2581.8,2581.7,0.38728]
[1726999232285,3.764,2581.8,2581.5,3.5883]
[1726999232286,3.764,2581.8,2581.6,0.38728]
[1726999236488,4.15127,2581.8,2581.6,0.38728]
[1726999236684,3.764,2581.8,2581.7,0.38728]
[1726999239878,3.764,2581.8,2581.5,3.5883]
[1726999240385,3.764,2581.8,2581.7,0.38728]
[1726999241287,4.89426,2581.9,2581.7,0.38728]
[1726999241593,4.89426,2581.9,2581.6,0.38728]
[1726999242284,4.89426,2581.9,2581.5,3.2078]
[1726999242285,0.38729,2581.6,2581.5,3.2078]
[1726999242990,0.38729,2581.6,2581.4,0.38731]
[1726999243285,0.784,2581.5,2581.3,0.38733]
[1726999243485,0.3749,2581.4,2581.3,0.38733]
[1726999243887,0.3749,2581.4,2581.3,4.26093]
[1726999245681,0.784,2581.5,2581.4,0.38732]
[1726999248490,4.1408,2581.8,2581.7,0.38728]
[1726999248491,4.52807,2581.8,2581.7,0.38728]
[1726999248879,4.52807,2581.8,2581.6,3.59508]
[1726999249085,4.52807,2581.8,2581.7,0.38728]
[1726999251391,0.38728,2581.7,2581.6,3.59509]
[1726999252186,4.52807,2581.8,2581.7,0.38728]
[1726999252493,4.52807,2581.8,2581.6,3.59508]
[1726999252691,4.1408,2581.8,2581.7,0.38728]
[1726999253594,4.52806,2581.8,2581.7,0.38728]
[1726999253890,4.50976,2581.8,2581.7,0.38728]
[1726999255191,0.38728,2581.7,2581.6,3.59508]
[1726999255692,4.50977,2581.8,2581.7,0.38728]
[1726999258192,4.50977,2581.8,2581.6,3.2078]
[1726999258193,4.1225,2581.8,2581.6,3.2078]
[1726999258397,4.50977,2581.8,2581.6,3.59508]
[1726999258588,4.50977,2581.8,2581.7,0.38728]
[1726999259698,4.1225,2581.8,2581.7,0.38728]
[1726999260603,4.1225,2581.8,2581.7,0.77098]
[1726999260988,4.50976,2581.8,2581.7,0.77098]
[1726999264300,4.50976,2581.8,2581.7,0.3837]
[1726999264602,3.312,2581.8,2581.7,11.61278]
[1726999264804,3.312,2581.8,2581.7,11.98518]
[1726999266804,3.312,2581.8,2581.7,4.64458]
[1726999266993,3.312,2581.8,2581.7,0.77098]
[1726999267594,2.86,2581.8,2581.7,0.77098]
[1726999268704,2.86,2581.8,2581.7,0.38728]
[1726999269200,4.41996,2581.8,2581.7,0.38728]
[1726999269605,4.0327,2581.8,2581.7,0.38728]
[1726999270296,4.41996,2581.8,2581.7,0.38728]
[1726999270494,4.0327,2581.8,2581.7,0.38728]
[1726999275012,2.86,2581.8,2581.7,1.40327597]
[1726999275210,2.86,2581.8,2581.7,3.2789052]
[1726999275408,2.86,2581.8,2581.7,3.6688052]
[1726999276011,2.86,2581.8,2581.7,13.5424052]
[1726999276314,2.86,2581.8,2581.7,12.99138018]
[1726999277116,2.86,2581.8,2581.7,6.99138018]
[1726999277319,2.86,2581.8,2581.7,3.28252252]
[1726999277509,2.86,2581.8,2581.7,1.91012234]
[1726999277813,2.86,2581.8,2581.7,2.77455252]
[1726999278011,2.86,2581.8,2581.7,1.75928279]
[1726999278425,2.86,2581.8,2581.7,2.77450685]
[1726999278925,2.86,2581.8,2581.7,0.38728]
[1726999283022,2.86,2581.8,2581.7,2.98228]
[1726999284523,2.86,2581.8,2581.7,13.82408]
[1726999284921,2.86,2581.8,2581.7,23.93930406]
[1726999285929,2.86,2581.8,2581.7,24.29555762]
[1726999287633,2.86,2581.8,2581.7,24.29532237]
[1726999288127,2.27888833,2581.8,2581.7,24.29532237]
[1726999288432,2.27888833,2581.8,2581.7,29.06317427]
[1726999288433,1.69688833,2581.8,2581.7,29.06317427]
[1726999288933,1.69688833,2581.8,2581.7,30.03137427]
[1726999289132,1.69688833,2581.8,2581.7,24.03137427]
[1726999289325,1.69688833,2581.8,2581.7,21.28915573]
[1726999289634,1.69688833,2581.8,2581.7,24.02639568]
[1726999289830,1.69688833,2581.8,2581.7,21.28915573]
[1726999290232,1.69688833,2581.8,2581.7,24.02637923]
[1726999291425,1.69688833,2581.8,2581.7,21.28915573]
[1726999291826,1.69688833,2581.8,2581.7,24.02633465]
[1726999292431,1.69688833,2581.8,2581.7,24.02338111]
[1726999294928,1.69688833,2581.8,2581.7,24.02309897]
[1726999295231,1.69688833,2581.8,2581.7,27.28630856]
[1726999295429,1.69688833,2581.8,2581.7,30.02297194]
[1726999295829,1.69688833,2581.8,2581.7,27.28630856]
[1726999296030,1.69688833,2581.8,2581.7,30.41918045]
[1726999297528,1.69688833,2581.8,2581.7,30.41873091]
[1726999298435,1.69688833,2581.8,2581.7,27.68231921]
[1726999298630,1.69688833,2581.8,2581.7,28.20407291]
[1726999299236,1.69688833,2581.8,2581.7,28.77833767]
[1726999300934,1.69688833,2581.8,2581.7,26.75270431]
[1726999301337,0.05578833,2581.8,2581.7,26.75270431]
[1726999301642,1.034,2581.8,2581.7,28.77833767]
[1726999301839,8.33e-06,2581.8,2581.7,30.75541333]
[1726999302038,8.33e-06,2581.8,2581.7,28.824711]
[1726999302339,8.33e-06,2581.8,2581.7,30.32339444]
[1726999302640,8.33e-06,2581.8,2581.7,30.57792399]
[1726999302842,8.33e-06,2581.8,2581.7,29.21231161]
[1726999303143,8.33e-06,2581.8,2581.7,31.94822614]
[1726999303633,8.33e-06,2581.8,2581.7,32.38010884]
[1726999304136,8.33e-06,2581.8,2581.7,30.35207164]
[1726999304447,8.33e-06,2581.8,2581.7,29.21213218]
[1726999306948,8.33e-06,2581.8,2581.7,28.81593218]
[1726999307242,8.33e-06,2581.8,2581.7,28.81569314]
[1726999307638,8.33e-06,2581.8,2581.7,28.38375446]
[1726999308240,8.33e-06,2581.8,2581.7,34.58955985]
[1726999308439,0.47712,2582.8,2582.6,0.38714]
[1726999308641,1.1473,2582.7,2582.6,0.38714]
[1726999310139,1.53443,2582.7,2582.5,3.59495]
[1726999310344,1.50113,2582.7,2582.5,3.59495]
[1726999310744,1.50113,2582.7,2582.6,0.38714]
[1726999310941,1.114,2582.7,2582.6,0.38714]
[1726999313352,1.114,2582.7,2582.5,3.59495]
[1726999313645,4.25914,2582.6,2582.5,1.994]
[1726999315362,0.3872,2582.2,2582.1,1.01386867]
[1726999315545,1.9358,2582.5,2581.8,0.38725]
[1726999315546,0.38723,2582.1,2581.8,0.38725]
[1726999315745,3.2078,2582.3,2581.7,1.01386867]
[1726999315951,0.38722,2582.1,2581.9,0.38724]
[1726999316348,4.26002,2582.1,2581.9,0.38724]
[1726999316850,0.3872,2582.2,2581.9,0.38724]
[1726999317356,0.38722,2582.1,2581.9,0.38724]
[1726999318146,0.38722,2582.1,2581.8,0.38725]
[1726999318555,1.1576,2582.0,2581.8,0.38725]
[1726999320453,1.1576,2582.0,2581.9,0.38725]
[1726999321355,1.1576,2582.0,2581.8,1.40111867]
[1726999322159,1.1576,2582.0,2581.9,0.38725]
[1726999322653,1.1576,2582.0,2581.8,1.40111867]
[1726999324056,1.1576,2582.0,2581.8,0.38725]
[1726999325457,1.1576,2582.0,2581.9,0.38725]
[1726999325654,1.1576,2582.0,2581.8,0.38725]
[1726999325851,1.1576,2582.0,2581.9,0.38725]
[1726999326056,1.1576,2582.0,2581.8,0.38725]
[1726999326556,0.38719,2582.3,2581.9,3.59505]
[1726999326755,0.3718,2582.2,2581.9,3.59503]
[1726999326958,0.75901,2582.2,2581.9,3.59503]
[1726999328358,0.38717,2582.5,2582.2,0.3872]
[1726999328549,0.3679,2582.4,2582.2,3.59499]
[1726999328751,0.3679,2582.4,2582.2,3.595]
[1726999329360,0.3679,2582.4,2582.3,0.38719]
[1726999330355,0.3679,2582.4,2582.2,3.2078]
[1726999330559,0.3679,2582.4,2582.3,0.38719]
[1726999332754,4.2407,2582.4,2582.0,1.01386867]
[1726999332959,0.38723,2582.1,2581.9,1.40110867]
[1726999333170,0.389,2582.0,2581.9,0.38724]
[1726999335769,0.38722,2582.1,2581.9,0.38724]
[1726999338383,0.38723,2582.1,2581.9,0.38725]
[1726999339477,0.3871,2582.2,2581.8,1.1544]
[1726999341372,0.38723,2582.1,2581.9,0.38724]
[1726999341768,4.26003,2582.1,2581.9,0.38724]
[1726999342673,0.38723,2582.1,2581.9,0.38724]
[1726999346976,4.84089,2582.0,2581.6,1.520803]
[1726999347174,0.38731,2581.5,2581.3,0.38733]
[1726999347373,0.38735,2581.2,2581.1,0.7711]
[1726999347574,0.38735,2581.3,2581.1,1.15847]
[1726999347870,1.72224,2581.6,2581.1,1.15847]
[1726999348081,0.38734,2581.3,2581.1,1.15847]
[1726999348470,0.05317343,2581.2,2581.1,1.15847]
[1726999349779,0.05317343,2581.2,2581.1,0.7711]
[1726999351575,0.05317343,2581.2,2581.1,1.15847]
[1726999351872,0.05317343,2581.2,2581.1,0.7711]
[1726999352574,0.05317343,2581.2,2581.1,1.15847]
[1726999352770,0.05317343,2581.2,2581.1,0.7711]
[1726999354281,0.05317343,2581.2,2581.1,1.15847]
[1726999356188,0.05317343,2581.2,2581.1,0.7711]
[1726999356480,0.05317343,2581.2,2581.1,1.15847]
[1726999360485,0.05317343,2581.2,2581.1,0.7711]
[1726999361383,0.05317343,2581.2,2581.1,1.15847]
[1726999362278,0.44052343,2581.2,2581.1,0.7711]
[1726999369280,0.44052343,2581.2,2581.0,0.3773]
[1726999369281,0.38737,2581.1,2581.0,0.3773]
[1726999369586,0.44054343,2581.1,2581.0,0.3773]
[1726999370183,0.05317343,2581.1,2581.0,0.3773]
[1726999370780,0.05317343,2581.1,2581.0,0.76468]
[1726999371176,0.05317343,2581.1,2581.0,0.3773]
[1726999375089,0.05317343,2581.1,2581.0,0.76468]
[1726999377589,0.05317343,2581.1,2581.0,3.97248]
[1726999379688,0.05317343,2581.1,2581.0,7.84688]
[1726999386091,0.05317343,2581.1,2581.0,3.97248]
[1726999386392,0.05317343,2581.1,2581.0,7.84688]
[1726999386589,0.05317343,2581.1,2581.0,3.97248]
[1726999386793,0.05317343,2581.1,2581.0,7.84688]
[1726999387186,0.05317343,2581.1,2581.0,3.97248]
[1726999387489,0.05317343,2581.1,2581.0,7.84688]
[1726999388790,0.05317343,2581.1,2581.0,3.97248]
[1726999388994,0.05317343,2581.1,2581.0,3.2078]
[1726999389200,0.05317343,2581.1,2581.0,3.59518]
[1726999390098,0.05317343,2581.1,2581.0,3.2078]
[1726999391202,0.05317343,2581.1,2580.7,2.694223]
[1726999391203,0.3874,2580.9,2580.7,2.694223]
[1726999391391,0.3874,2580.9,2580.7,1.17343]
[1726999391693,0.05317343,2580.8,2580.7,1.17343]
[1726999395098,0.05317343,2580.8,2580.7,0.786]
[1726999397401,0.05317343,2580.8,2580.7,1.17343]
[1726999398695,0.05317343,2580.8,2580.7,2.53929706]
[1726999399004,0.05317343,2580.8,2580.7,2.5392947]
[1726999400591,0.05317343,2580.8,2580.7,2.53920855]
[1726999401004,0.05317343,2580.8,2580.7,2.53920834]
[1726999401603,0.05317343,2580.8,2580.7,1.17343]
[1726999401798,0.05317343,2580.8,2580.6,1.903203]
[1726999401799,0.05317343,2580.8,2580.6,0.76984]
[1726999402007,0.82769343,2580.8,2580.6,0.3824]
[1726999402594,0.82769343,2580.8,2580.6,0.76984]
[1726999402904,0.44061343,2580.7,2580.5,3.611]
[1726999403600,0.44061343,2580.7,2580.5,3.99845]
[1726999403897,0.05317343,2580.6,2580.5,3.99845]
[1726999416709,0.05317343,2580.6,2580.5,7.87365]
[1726999417011,0.38737,2581.2,2580.5,17.34020408]
[1726999417216,0.38737,2581.2,2580.8,3.2078]
[1726999417416,3.2078,2581.5,2580.9,0.766]
[1726999417916,3.2078,2581.5,2581.3,0.38734]
[1726999418112,3.2078,2581.5,2581.4,0.3908]
[1726999418511,3.2078,2581.5,2581.4,0.77812]
[1726999418717,3.2078,2581.5,2581.4,0.3908]
[1726999419018,3.2078,2581.5,2581.4,0.77812]
[1726999419203,0.75839,2581.7,2581.4,0.77812]
[1726999420215,0.75839,2581.7,2581.5,0.385]
[1726999420611,4.63199,2581.7,2581.5,0.385]
[1726999421513,0.38729,2581.6,2581.5,0.385]
[1726999422016,4.26089,2581.6,2581.5,0.385]
[1726999429521,0.38729,2581.6,2581.5,0.385]
[1726999429714,4.26089,2581.6,2581.5,0.385]
[1726999430121,0.38729,2581.6,2581.5,0.385]
[1726999430716,0.38729,2581.6,2581.5,0.7827]
[1726999436522,3.6025,2581.8,2581.6,0.38729]
[1726999436523,0.38728,2581.8,2581.6,0.38729]
[1726999436730,0.38727,2581.8,2581.6,0.38729]
[1726999436917,0.38727,2581.8,2581.5,3.9905]
[1726999437322,0.38727,2581.8,2581.5,9.8827]
[1726999437823,4.93265,2582.1,2581.5,9.8827]
[1726999437824,4.93265,2582.1,2581.7,0.38727]
[1726999438019,0.38726,2581.9,2581.8,0.3783]
[1726999439227,4.93265,2582.1,2581.8,0.76556]
[1726999439228,0.38723,2582.0,2581.8,0.76556]
[1726999439423,0.38722,2582.1,2581.9,0.75504]
[1726999439615,0.96794,2582.4,2581.9,1.15984]
[1726999440118,0.38723,2582.1,2581.9,1.15984]
[1726999442128,0.38719,2582.3,2582.1,0.38721]
[1726999442321,0.3872,2582.2,2582.1,0.38721]
[1726999442626,4.2517,2582.5,2581.9,3.9804]
[1726999442627,0.38719,2582.4,2581.9,3.9804]
[1726999442825,0.38719,2582.3,2582.1,0.38721]
[1726999443029,0.38719,2582.3,2582.2,0.3827]
[1726999444123,0.38718,2582.4,2582.2,0.7699]
[1726999444527,0.38718,2582.4,2582.3,0.3772]
[1726999445332,0.38719,2582.3,2582.2,0.3827]
[1726999452719,0.3872,2582.2,2582.0,0.3772]
[1726999452925,0.3872,2582.2,2582.1,0.3798]
[1726999453725,3.2078,2582.5,2582.1,10.2526]
[1726999454026,0.96772,2583.0,2582.2,9.6666]
[1726999454233,0.38713,2582.7,2582.5,3.2078]
[1726999454425,0.38713,2582.7,2582.6,0.76]
[1726999457123,0.38713,2582.7,2582.6,1.1495]
[1726999459633,0.38713,2582.7,2582.6,1.53664]
[1726999460039,0.38713,2582.7,2582.6,1.1495]
[1726999460339,0.38713,2582.7,2582.6,1.53664]
[1726999460632,0.96772,2583.0,2582.6,1.53664]
[1726999461930,0.96778,2582.9,2582.4,0.38716]
[1726999462143,0.96783,2582.7,2582.3,1.50598]
[1726999462335,0.38717,2582.4,2582.3,0.3691]
[1726999463027,0.38717,2582.4,2582.3,0.75629]
[1726999463940,0.4024,2582.6,2582.3,0.75629]
[1726999464138,0.38716,2582.5,2582.3,0.75629]
[1726999464340,0.38717,2582.4,2582.3,0.75629]
[1726999465335,0.38717,2582.4,2582.3,0.3691]